[Event "14e Open International de Quenza"]
[Site "Quenza, France"]
[Date "????.??.??"]
[Round "7.10"]
[White "Johannsdottir, Johanna Bjorg"]
[Black "Deladerriere, Apollo"]
[Result "1-0"]
[TimeControl "5min+3s"]
[WhiteElo "1997"]
[BlackElo "2131"]

1. e4 {[%clk 00:05:03]} {[%emt 00:00:01]} c6 {[%clk 00:05:03]} 2. d3 {[%clk
00:05:03]} {[%emt 00:00:04]} d5 {[%clk 00:05:03]} {[%emt 00:00:03]} 3. Nf3
{[%clk 00:05:03]} {[%emt 00:00:02]} Nf6 {[%clk 00:05:03]} 4. Nbd2 {[%clk
00:04:59]} {[%emt 00:00:08]} e6 {[%clk 00:05:03]} {[%emt 00:00:03]} 5. g3
{[%clk 00:04:59]} {[%emt 00:00:02]} Be7 {[%clk 00:04:52]} {[%emt 00:00:15]} 6.
Bg2 {[%clk 00:04:59]} {[%emt 00:00:01]} Na6 {[%clk 00:04:44]} {[%emt 00:00:11]}
7. O-O {[%clk 00:04:52]} {[%emt 00:00:09]} dxe4 {[%clk 00:04:43]} {[%emt
00:00:06]} 8. dxe4 {[%clk 00:04:52]} {[%emt 00:00:03]} O-O {[%clk 00:04:40]}
{[%emt 00:00:06]} 9. e5 {[%clk 00:04:47]} {[%emt 00:00:08]} Nd5 {[%clk
00:04:30]} {[%emt 00:00:13]} 10. c3 {[%clk 00:04:46]} {[%emt 00:00:04]} Nc5
{[%clk 00:04:23]} {[%emt 00:00:10]} 11. Qc2 {[%clk 00:04:43]} {[%emt 00:00:07]}
Qc7 {[%clk 00:04:18]} {[%emt 00:00:08]} 12. Re1 {[%clk 00:04:35]} {[%emt
00:00:10]} b6 {[%clk 00:04:18]} {[%emt 00:00:03]} 13. a3 {[%clk 00:04:23]}
{[%emt 00:00:15]} Ba6 {[%clk 00:04:18]} {[%emt 00:00:01]} 14. c4 {[%clk
00:04:23]} {[%emt 00:00:02]} Rac8 {[%clk 00:03:48]} {[%emt 00:00:33]} 15. cxd5
{[%clk 00:03:58]} {[%emt 00:00:27]} cxd5 {[%clk 00:03:48]} {[%emt 00:00:01]} 16.
b4 {[%clk 00:03:55]} {[%emt 00:00:07]} Nd3 {[%clk 00:03:36]} {[%emt 00:00:14]}
17. Qxc7 {[%clk 00:03:55]} {[%emt 00:00:01]} Rxc7 {[%clk 00:03:36]} 18. Rd1
{[%clk 00:03:54]} {[%emt 00:00:04]} Rfc8 {[%clk 00:03:36]} {[%emt 00:00:03]} 19.
Nb3 {[%clk 00:03:47]} {[%emt 00:00:10]} Bc4 {[%clk 00:03:33]} {[%emt 00:00:07]}
20. Be3 {[%clk 00:03:40]} {[%emt 00:00:10]} Nb2 {[%clk 00:02:33]} {[%emt
00:01:04]} 21. Rd2 {[%clk 00:03:38]} {[%emt 00:00:05]} Na4 {[%clk 00:02:29]}
{[%emt 00:00:07]} 22. Nbd4 {[%clk 00:03:37]} {[%emt 00:00:03]} Nc3 {[%clk
00:02:21]} {[%emt 00:00:11]} 23. h4 {[%clk 00:03:32]} {[%emt 00:00:09]} a5
{[%clk 00:02:10]} {[%emt 00:00:14]} 24. bxa5 {[%clk 00:03:25]} {[%emt
00:00:10]} bxa5 {[%clk 00:02:10]} 25. Bf1 {[%clk 00:03:17]} {[%emt 00:00:10]}
Rb7 {[%clk 00:01:52]} {[%emt 00:00:21]} 26. Rc2 {[%clk 00:03:09]} {[%emt
00:00:11]} Bxf1 {[%clk 00:01:19]} {[%emt 00:00:36]} 27. Kxf1 {[%clk 00:03:08]}
{[%emt 00:00:04]} Rbc7 {[%clk 00:01:19]} {[%emt 00:00:03]} 28. Bd2 {[%clk
00:02:42]} {[%emt 00:00:29]} Rc4 {[%clk 00:01:17]} {[%emt 00:00:05]} 29. Rxc3
{[%clk 00:02:30]} {[%emt 00:00:15]} Rxc3 {[%clk 00:01:17]} 30. Bxc3 {[%clk
00:02:30]} {[%emt 00:00:01]} Rxc3 {[%clk 00:01:17]} 31. a4 {[%clk 00:02:30]}
{[%emt 00:00:03]} f6 {[%clk 00:01:12]} {[%emt 00:00:08]} 32. Ke2 {[%clk
00:02:25]} {[%emt 00:00:08]} fxe5 {[%clk 00:01:03]} {[%emt 00:00:12]} 33. Nxe5
{[%clk 00:02:24]} {[%emt 00:00:03]} Bf6 {[%clk 00:01:03]} {[%emt 00:00:01]} 34.
Ndf3 {[%clk 00:02:13]} {[%emt 00:00:14]} Rc2+ {[%clk 00:00:53]} {[%emt
00:00:13]} 35. Ke1 {[%clk 00:02:09]} {[%emt 00:00:06]} Rc3 {[%clk 00:00:36]}
{[%emt 00:00:21]} 36. Rb1 {[%clk 00:02:09]} {[%emt 00:00:03]} h6 {[%clk
00:00:36]} {[%emt 00:00:02]} 37. Rb8+ {[%clk 00:02:04]} {[%emt 00:00:08]} Kh7
{[%clk 00:00:36]} 38. h5 {[%clk 00:02:04]} {[%emt 00:00:01]} Ra3 {[%clk
00:00:26]} {[%emt 00:00:14]} 39. Ng6 {[%emt 00:00:18]} 1-0

[Event "14e Open International de Quenza"]
[Site "Quenza, France"]
[Date "????.??.??"]
[Round "7.11"]
[White "Have, Didier"]
[Black "Ratier-Fontana, Matteo"]
[Result "1-0"]
[TimeControl "5min+3s"]
[WhiteElo "1903"]
[BlackElo "2275"]

1. e4 {[%clk 00:05:03]} {[%emt 00:02:40]} d6 {[%clk 00:05:03]} {[%emt
00:00:01]} 2. d4 {[%clk 00:05:03]} {[%emt 00:00:01]} Nf6 {[%clk 00:05:03]}
{[%emt 00:00:01]} 3. Nc3 {[%clk 00:05:03]} {[%emt 00:00:01]} Nbd7 {[%clk
00:05:03]} {[%emt 00:00:02]} 4. Nf3 {[%clk 00:05:00]} {[%emt 00:00:06]} e5
{[%clk 00:05:03]} {[%emt 00:00:01]} 5. dxe5 {[%clk 00:04:54]} {[%emt 00:00:09]}
dxe5 {[%clk 00:05:03]} {[%emt 00:00:01]} 6. Bc4 {[%clk 00:04:51]} {[%emt
00:00:06]} Be7 {[%clk 00:05:03]} 7. h3 {[%clk 00:04:44]} {[%emt 00:00:11]} O-O
{[%clk 00:05:03]} {[%emt 00:00:03]} 8. Be3 {[%clk 00:04:42]} {[%emt 00:00:05]}
c6 {[%clk 00:05:03]} {[%emt 00:00:02]} 9. O-O {[%clk 00:04:35]} {[%emt
00:00:10]} b5 {[%clk 00:05:03]} {[%emt 00:00:03]} 10. Bd3 {[%clk 00:04:22]}
{[%emt 00:00:16]} Qc7 {[%clk 00:05:03]} {[%emt 00:00:01]} 11. Ne2 {[%clk
00:04:11]} {[%emt 00:00:14]} Nc5 {[%clk 00:05:03]} {[%emt 00:00:02]} 12. Ng3
{[%clk 00:04:01]} {[%emt 00:00:13]} Rd8 {[%clk 00:04:56]} {[%emt 00:00:10]} 13.
Qe2 {[%clk 00:03:48]} {[%emt 00:00:16]} Be6 {[%clk 00:04:48]} {[%emt 00:00:11]}
14. Rfd1 {[%clk 00:03:40]} {[%emt 00:00:11]} Bf8 {[%clk 00:04:23]} {[%emt
00:00:28]} 15. Nh4 {[%clk 00:03:38]} {[%emt 00:00:04]} g6 {[%clk 00:04:03]}
{[%emt 00:00:23]} 16. Nf3 {[%clk 00:03:36]} {[%emt 00:00:05]} a5 {[%clk
00:03:52]} {[%emt 00:00:15]} 17. Ng5 {[%clk 00:03:08]} {[%emt 00:00:30]} Bd7
{[%clk 00:03:36]} {[%emt 00:00:20]} 18. Qf3 {[%clk 00:02:55]} {[%emt 00:00:16]}
Kg7 {[%clk 00:03:24]} {[%emt 00:00:14]} 19. Nxf7 {[%clk 00:01:43]} {[%emt
00:01:15]} Kxf7 {[%clk 00:03:18]} {[%emt 00:00:09]} 20. Bg5 {[%clk 00:01:33]}
{[%emt 00:00:13]} Bg7 {[%clk 00:03:18]} {[%emt 00:00:03]} 21. Bxf6 {[%clk
00:01:06]} {[%emt 00:00:30]} Bxf6 {[%clk 00:03:18]} {[%emt 00:00:02]} 22. h4
{[%clk 00:00:53]} {[%emt 00:00:17]} Kg7 {[%clk 00:03:12]} {[%emt 00:00:10]} 23.
h5 {[%clk 00:00:53]} {[%emt 00:00:03]} Bg5 {[%clk 00:03:12]} 24. Qe2 {[%clk
00:00:29]} {[%emt 00:00:27]} Rf8 {[%clk 00:03:09]} {[%emt 00:00:05]} 25. f3
{[%clk 00:00:27]} {[%emt 00:00:05]} Ne6 {[%clk 00:03:09]} {[%emt 00:00:02]} 26.
hxg6 {[%clk 00:00:26]} {[%emt 00:00:04]} hxg6 {[%clk 00:03:09]} {[%emt
00:00:02]} 27. Qe1 {[%clk 00:00:21]} {[%emt 00:00:07]} Qb6+ {[%clk 00:03:09]}
{[%emt 00:00:02]} 28. Kf1 {[%clk 00:00:21]} {[%emt 00:00:02]} Rad8 {[%clk
00:03:08]} {[%emt 00:00:05]} 29. Qc3 {[%clk 00:00:21]} Qc7 {[%clk 00:03:04]}
{[%emt 00:00:08]} 30. Bxb5 {[%clk 00:00:19]} {[%emt 00:00:05]} cxb5 {[%clk
00:03:01]} {[%emt 00:00:06]} 1-0

[Event "14e Open International de Quenza"]
[Site "Quenza, France"]
[Date "????.??.??"]
[Round "7.12"]
[White "Cardi, Jean"]
[Black "Calistri, Tristan"]
[Result "1/2-1/2"]
[TimeControl "5min+3s"]
[WhiteElo "1976"]
[BlackElo "2198"]

1. e4 {[%clk 00:05:03]} {[%emt 00:00:01]} c5 {[%clk 00:05:03]} 2. Nf3 {[%clk
00:05:03]} {[%emt 00:00:02]} e6 {[%clk 00:05:03]} 3. c3 {[%clk 00:05:03]}
{[%emt 00:00:04]} Nf6 {[%clk 00:05:03]} {[%emt 00:00:02]} 4. e5 {[%clk
00:05:03]} {[%emt 00:00:03]} Nd5 {[%clk 00:05:03]} {[%emt 00:00:01]} 5. g3
{[%clk 00:05:03]} {[%emt 00:00:01]} Nc6 {[%clk 00:04:59]} {[%emt 00:00:08]} 6.
Bg2 {[%clk 00:05:02]} {[%emt 00:00:03]} d6 {[%clk 00:04:59]} {[%emt 00:00:01]}
7. exd6 {[%clk 00:05:02]} {[%emt 00:00:01]} Bxd6 {[%clk 00:04:59]} {[%emt
00:00:02]} 8. O-O {[%clk 00:05:02]} {[%emt 00:00:02]} O-O {[%clk 00:04:59]}
{[%emt 00:00:03]} 9. d4 {[%clk 00:05:02]} {[%emt 00:00:01]} cxd4 {[%clk
00:04:59]} {[%emt 00:00:02]} 10. Nxd4 {[%clk 00:05:02]} {[%emt 00:00:02]} Nxd4
{[%clk 00:04:12]} {[%emt 00:00:50]} 11. Qxd4 {[%clk 00:04:59]} {[%emt
00:00:05]} Qc7 {[%clk 00:04:04]} {[%emt 00:00:12]} 12. Nd2 {[%clk 00:04:27]}
{[%emt 00:00:35]} Bd7 {[%clk 00:03:59]} {[%emt 00:00:08]} 13. Ne4 {[%clk
00:04:14]} {[%emt 00:00:16]} Be5 {[%clk 00:03:25]} {[%emt 00:00:37]} 14. Qd3
{[%clk 00:03:56]} {[%emt 00:00:21]} Bc6 {[%clk 00:03:15]} {[%emt 00:00:12]} 15.
Ng5 {[%clk 00:03:30]} {[%emt 00:00:29]} Nf6 {[%clk 00:03:15]} {[%emt 00:00:02]}
16. Nf3 {[%clk 00:03:09]} {[%emt 00:00:24]} Rad8 {[%clk 00:02:57]} {[%emt
00:00:20]} 17. Qe2 {[%clk 00:02:58]} {[%emt 00:00:14]} Bd6 {[%clk 00:02:57]}
{[%emt 00:00:02]} 18. Bg5 {[%clk 00:02:53]} {[%emt 00:00:09]} Be7 {[%clk
00:02:57]} 19. Rfd1 {[%clk 00:02:48]} {[%emt 00:00:08]} h6 {[%clk 00:02:50]}
{[%emt 00:00:11]} 20. Bf4 {[%clk 00:02:42]} {[%emt 00:00:09]} Qb6 {[%clk
00:02:50]} {[%emt 00:00:03]} 21. a4 {[%clk 00:02:03]} {[%emt 00:00:42]} Rxd1+
{[%clk 00:02:31]} {[%emt 00:00:22]} 22. Rxd1 {[%clk 00:01:50]} {[%emt
00:00:15]} Bxa4 {[%clk 00:02:31]} {[%emt 00:00:02]} 23. Rd4 {[%clk 00:01:40]}
{[%emt 00:00:13]} Bc6 {[%clk 00:02:31]} {[%emt 00:00:02]} 24. Ne5 {[%clk
00:00:59]} {[%emt 00:00:45]} Bxg2 {[%clk 00:02:30]} {[%emt 00:00:04]} 25. Kxg2
{[%clk 00:00:59]} {[%emt 00:00:01]} Rd8 {[%clk 00:02:13]} {[%emt 00:00:20]} 26.
Rxd8+ {[%clk 00:00:52]} {[%emt 00:00:10]} Qxd8 {[%clk 00:02:13]} {[%emt
00:00:01]} 27. Qb5 {[%clk 00:00:40]} {[%emt 00:00:15]} Qd5+ {[%clk 00:02:13]}
{[%emt 00:00:03]} 28. Qxd5 {[%clk 00:00:40]} {[%emt 00:00:04]} Nxd5 {[%clk
00:02:13]} {[%emt 00:00:01]} 29. Bd2 {[%clk 00:00:40]} {[%emt 00:00:01]} b5
{[%clk 00:02:02]} {[%emt 00:00:14]} 30. b4 {[%clk 00:00:29]} {[%emt 00:00:15]}
Bf6 {[%clk 00:01:48]} {[%emt 00:00:17]} 31. Nc6 {[%clk 00:00:27]} {[%emt
00:00:04]} a6 {[%clk 00:01:45]} {[%emt 00:00:06]} 32. Nb8 {[%clk 00:00:25]}
{[%emt 00:00:05]} Bxc3 {[%clk 00:01:43]} {[%emt 00:00:06]} 33. Bxc3 {[%clk
00:00:25]} {[%emt 00:00:03]} Nxc3 {[%clk 00:01:43]} 34. Nxa6 {[%clk 00:00:25]}
{[%emt 00:00:02]} Nd5 {[%clk 00:01:43]} {[%emt 00:00:01]} 35. Kf3 {[%clk
00:00:16]} {[%emt 00:00:12]} f5 {[%clk 00:01:41]} {[%emt 00:00:05]} 36. Ke2
{[%clk 00:00:12]} {[%emt 00:00:07]} Kf7 {[%clk 00:01:40]} {[%emt 00:00:04]} 37.
f4 {[%clk 00:00:11]} e5 {[%clk 00:01:40]} {[%emt 00:00:05]} 38. Kd3 {[%clk
00:00:11]} {[%emt 00:00:03]} exf4 {[%clk 00:01:34]} {[%emt 00:00:09]} 39. gxf4
{[%clk 00:00:11]} {[%emt 00:00:01]} Nxf4+ {[%clk 00:01:34]} {[%emt 00:00:01]}
40. Kd4 {[%clk 00:00:11]} {[%emt 00:00:01]} Ne6+ {[%clk 00:01:34]} {[%emt
00:00:01]} 41. Ke5 {[%clk 00:00:11]} {[%emt 00:00:02]} f4 {[%clk 00:01:34]} 42.
Ke4 {[%clk 00:00:08]} {[%emt 00:00:06]} g5 {[%clk 00:01:34]} {[%emt 00:00:02]}
43. Nb8 {[%clk 00:00:07]} {[%emt 00:00:04]} Ke7 {[%clk 00:01:30]} {[%emt
00:00:07]} 44. Nc6+ {[%clk 00:00:07]} {[%emt 00:00:01]} Kd6 {[%clk 00:01:30]}
{[%emt 00:00:01]} 45. Ne5 {[%clk 00:00:07]} Nc7 {[%clk 00:01:25]} {[%emt
00:00:11]} 46. Nf7+ {[%clk 00:00:07]} {[%emt 00:00:01]} Ke6 {[%clk 00:01:24]}
{[%emt 00:00:03]} 47. Nxh6 {[%clk 00:00:07]} {[%emt 00:00:02]} Nd5 {[%clk
00:01:24]} {[%emt 00:00:01]} 48. Ng4 {[%clk 00:00:05]} {[%emt 00:00:06]} Nxb4
{[%clk 00:01:24]} {[%emt 00:00:02]} 49. Ne5 {[%clk 00:00:05]} {[%emt 00:00:03]}
Nd5 {[%clk 00:01:23]} {[%emt 00:00:05]} 50. Nd3 {[%clk 00:00:05]} {[%emt
00:00:01]} b4 {[%clk 00:01:23]} {[%emt 00:00:03]} 51. h3 {[%clk 00:00:05]} b3
{[%clk 00:01:23]} {[%emt 00:00:02]} 52. Nc5+ {[%clk 00:00:05]} Kf6 {[%clk
00:01:23]} {[%emt 00:00:02]} 53. Nxb3 {[%clk 00:00:05]} Nc3+ {[%clk 00:01:23]}
{[%emt 00:00:01]} 54. Kd3 {[%emt 00:00:03]} Nd5 {[%clk 00:01:23]} 55. Ke4
{[%clk 00:00:05]} Ne3 {[%clk 00:01:23]} {[%emt 00:00:01]} 56. Nd4 {[%clk
00:00:05]} {[%emt 00:00:02]} Nf1 {[%emt 00:00:08]} 57. h4 {[%clk 00:00:05]}
Ng3+ {[%clk 00:01:19]} {[%emt 00:00:03]} 58. Kf3 {[%clk 00:00:05]} Ke5 {[%clk
00:01:18]} {[%emt 00:00:04]} 59. hxg5 {[%clk 00:00:05]} {[%emt 00:00:02]} Nh5
{[%clk 00:01:18]} {[%emt 00:00:02]} 60. Ne2 {[%clk 00:00:05]} {[%emt 00:00:01]}
Kf5 {[%clk 00:01:18]} {[%emt 00:00:01]} 61. g6 {[%clk 00:00:05]} Kxg6 {[%emt
00:00:01]} 1/2-1/2

[Event "14e Open International de Quenza"]
[Site "Quenza, France"]
[Date "????.??.??"]
[Round "8.1"]
[White "Terrieux, Kevin"]
[Black "Dardha, Daniel"]
[Result "0-1"]
[TimeControl "5min+3s"]
[WhiteElo "2394"]
[BlackElo "2627"]

1. e4 {[%clk 00:05:03]} {[%emt 00:00:02]} c5 {[%clk 00:05:03]} {[%emt
00:00:02]} 2. Nf3 {[%clk 00:05:03]} {[%emt 00:00:02]} d6 {[%clk 00:05:03]}
{[%emt 00:00:01]} 3. Bb5+ {[%clk 00:05:03]} {[%emt 00:00:02]} Bd7 {[%clk
00:05:03]} 4. Bxd7+ {[%clk 00:05:03]} {[%emt 00:00:03]} Nxd7 {[%clk 00:05:03]}
{[%emt 00:00:01]} 5. c4 {[%clk 00:05:03]} {[%emt 00:00:03]} Ngf6 {[%clk
00:05:03]} {[%emt 00:00:02]} 6. Nc3 {[%clk 00:05:03]} {[%emt 00:00:02]} e6
{[%clk 00:05:00]} {[%emt 00:00:07]} 7. O-O {[%clk 00:04:57]} {[%emt 00:00:09]}
a6 {[%clk 00:04:58]} {[%emt 00:00:05]} 8. d4 {[%clk 00:04:54]} {[%emt
00:00:06]} cxd4 {[%clk 00:04:58]} {[%emt 00:00:02]} 9. Qxd4 {[%clk 00:04:48]}
{[%emt 00:00:09]} Be7 {[%clk 00:04:56]} {[%emt 00:00:05]} 10. b3 {[%clk
00:04:48]} {[%emt 00:00:04]} O-O {[%clk 00:04:56]} {[%emt 00:00:03]} 11. Bb2
{[%clk 00:04:46]} {[%emt 00:00:05]} Rc8 {[%clk 00:04:52]} {[%emt 00:00:07]} 12.
Rad1 {[%clk 00:04:37]} {[%emt 00:00:12]} Qa5 {[%clk 00:04:52]} {[%emt
00:00:03]} 13. Rfe1 {[%clk 00:04:09]} {[%emt 00:00:31]} Rfd8 {[%clk 00:04:42]}
{[%emt 00:00:12]} 14. Qd3 {[%clk 00:03:05]} {[%emt 00:01:07]} Nc5 {[%clk
00:04:10]} {[%emt 00:00:35]} 15. Qe2 {[%clk 00:03:05]} {[%emt 00:00:01]} b5
{[%clk 00:03:32]} {[%emt 00:00:41]} 16. cxb5 {[%clk 00:02:42]} {[%emt
00:00:26]} axb5 {[%clk 00:03:32]} {[%emt 00:00:01]} 17. Qxb5 {[%clk 00:02:42]}
{[%emt 00:00:02]} Qxb5 {[%clk 00:03:32]} {[%emt 00:00:01]} 18. Nxb5 {[%clk
00:02:42]} {[%emt 00:00:01]} Ncxe4 {[%clk 00:03:29]} {[%emt 00:00:06]} 19. Rc1
{[%clk 00:02:37]} {[%emt 00:00:08]} Ra8 {[%clk 00:03:18]} {[%emt 00:00:14]} 20.
a4 {[%clk 00:02:37]} {[%emt 00:00:02]} Nc5 {[%clk 00:03:18]} {[%emt 00:00:01]}
21. Nfd4 {[%clk 00:02:28]} {[%emt 00:00:13]} Nd3 {[%clk 00:03:07]} {[%emt
00:00:14]} 22. Nc6 {[%clk 00:02:28]} {[%emt 00:00:03]} Rd7 {[%clk 00:02:52]}
{[%emt 00:00:19]} 23. Nxe7+ {[%clk 00:01:57]} {[%emt 00:00:33]} Rxe7 {[%clk
00:02:52]} {[%emt 00:00:01]} 24. Bxf6 {[%clk 00:01:52]} {[%emt 00:00:09]} gxf6
{[%clk 00:02:47]} {[%emt 00:00:09]} 25. Nxd6 {[%clk 00:01:10]} {[%emt
00:00:45]} Nxe1 {[%clk 00:02:36]} {[%emt 00:00:14]} 26. Rxe1 {[%clk 00:01:10]}
Rd7 {[%clk 00:02:23]} {[%emt 00:00:16]} 27. Ne4 {[%clk 00:00:36]} {[%emt
00:00:37]} Rd3 {[%clk 00:02:21]} {[%emt 00:00:05]} 28. Nxf6+ {[%clk 00:00:32]}
{[%emt 00:00:08]} Kg7 {[%clk 00:02:21]} {[%emt 00:00:01]} 29. Nh5+ {[%clk
00:00:23]} {[%emt 00:00:11]} Kh6 {[%clk 00:02:21]} {[%emt 00:00:01]} 30. g4
{[%clk 00:00:20]} {[%emt 00:00:06]} Rxb3 {[%clk 00:02:10]} {[%emt 00:00:14]} 31.
Re4 {[%clk 00:00:11]} {[%emt 00:00:13]} Ra3 {[%clk 00:02:10]} {[%emt 00:00:03]}
32. Rf4 {[%clk 00:00:07]} {[%emt 00:00:07]} f5 {[%clk 00:02:08]} {[%emt
00:00:05]} 33. Ng3 {[%clk 00:00:06]} {[%emt 00:00:04]} Kg5 {[%clk 00:02:07]}
{[%emt 00:00:04]} 34. Rb4 {[%clk 00:00:06]} {[%emt 00:00:02]} R3xa4 {[%clk
00:01:58]} {[%emt 00:00:11]} 35. h4+ {[%clk 00:00:06]} {[%emt 00:00:02]} Kxh4
{[%clk 00:01:50]} {[%emt 00:00:12]} 36. Rb7 {[%clk 00:00:06]} {[%emt 00:00:02]}
Kxg4 {[%clk 00:01:48]} {[%emt 00:00:04]} 37. Rxh7 {[%clk 00:00:06]} {[%emt
00:00:01]} Kf3 {[%clk 00:01:48]} 38. Rh3 {[%clk 00:00:06]} {[%emt 00:00:02]}
Rg8 {[%clk 00:01:43]} {[%emt 00:00:08]} 39. Kh2 {[%clk 00:00:06]} {[%emt
00:00:03]} Kxf2 {[%clk 00:01:43]} {[%emt 00:00:02]} 40. Nh1+ {[%clk 00:00:06]}
{[%emt 00:00:03]} Ke2 {[%clk 00:01:43]} 41. Ng3+ {[%clk 00:00:06]} {[%emt
00:00:02]} Ke1 {[%clk 00:01:43]} {[%emt 00:00:02]} 42. Rh6 {[%clk 00:00:06]}
{[%emt 00:00:02]} Ra2+ {[%clk 00:01:41]} {[%emt 00:00:05]} 43. Kh1 {[%clk
00:00:05]} {[%emt 00:00:04]} Rxg3 {[%clk 00:01:35]} {[%emt 00:00:08]} 44. Rxe6+
{[%clk 00:00:05]} {[%emt 00:00:02]} Re2 {[%clk 00:01:35]} {[%emt 00:00:01]} 0-1

[Event "14e Open International de Quenza"]
[Site "Quenza, France"]
[Date "????.??.??"]
[Round "8.2"]
[White "Maurizzi, Marc Andria"]
[Black "Lagarde, Maxime"]
[Result "1-0"]
[TimeControl "5min+3s"]
[WhiteElo "2604"]
[BlackElo "2618"]

1. e4 {[%clk 00:05:03]} c5 {[%clk 00:05:03]} {[%emt 00:00:02]} 2. Nf3 {[%clk
00:05:03]} {[%emt 00:00:01]} d6 {[%clk 00:05:03]} 3. d4 {[%clk 00:04:54]}
{[%emt 00:00:12]} cxd4 {[%clk 00:05:03]} 4. Nxd4 {[%clk 00:04:54]} Nf6 {[%clk
00:05:03]} {[%emt 00:00:01]} 5. Nc3 {[%clk 00:04:54]} g6 {[%clk 00:05:03]} 6.
Bg5 {[%clk 00:04:54]} {[%emt 00:00:02]} Bg7 {[%clk 00:05:03]} {[%emt 00:00:04]}
7. Bb5+ {[%clk 00:04:54]} {[%emt 00:00:01]} Bd7 {[%clk 00:04:57]} {[%emt
00:00:09]} 8. Qe2 {[%clk 00:04:54]} {[%emt 00:00:01]} a6 {[%clk 00:04:45]}
{[%emt 00:00:15]} 9. Bxd7+ {[%clk 00:04:54]} {[%emt 00:00:01]} Nbxd7 {[%clk
00:04:45]} {[%emt 00:00:01]} 10. O-O-O {[%clk 00:04:54]} {[%emt 00:00:01]} Rc8
{[%clk 00:04:32]} {[%emt 00:00:16]} 11. f4 {[%clk 00:04:51]} {[%emt 00:00:07]}
Rxc3 12. bxc3 {[%clk 00:04:51]} Qa5 {[%clk 00:04:20]} {[%emt 00:00:02]} 13. Nb3
{[%clk 00:04:51]} Qa3+ {[%clk 00:03:58]} {[%emt 00:00:25]} 14. Kd2 {[%clk
00:04:02]} {[%emt 00:00:51]} O-O {[%clk 00:03:43]} {[%emt 00:00:18]} 15. Ke1
{[%clk 00:03:53]} {[%emt 00:00:12]} h6 {[%clk 00:03:31]} {[%emt 00:00:16]} 16.
Bxf6 {[%clk 00:03:29]} {[%emt 00:00:27]} Nxf6 {[%clk 00:03:31]} {[%emt
00:00:01]} 17. e5 {[%clk 00:03:19]} {[%emt 00:00:13]} Nd7 {[%clk 00:03:17]}
{[%emt 00:00:17]} 18. exd6 {[%clk 00:03:17]} {[%emt 00:00:05]} exd6 {[%clk
00:03:11]} {[%emt 00:00:10]} 19. Kf2 {[%clk 00:03:13]} {[%emt 00:00:07]} Nf6
{[%clk 00:02:53]} {[%emt 00:00:21]} 20. Rhe1 {[%clk 00:02:20]} {[%emt
00:00:56]} d5 {[%clk 00:02:53]} 21. Nd2 {[%clk 00:02:20]} Rc8 {[%clk 00:02:36]}
{[%emt 00:00:20]} 22. c4 {[%clk 00:02:11]} {[%emt 00:00:12]} dxc4 {[%clk
00:02:17]} {[%emt 00:00:22]} 23. Ne4 {[%clk 00:01:58]} {[%emt 00:00:16]} Nxe4+
{[%clk 00:02:08]} 24. Qxe4 {[%clk 00:01:58]} Qxa2 {[%clk 00:01:57]} {[%emt
00:00:14]} 25. Rd7 {[%clk 00:01:47]} {[%emt 00:00:13]} Qb2 {[%clk 00:01:45]}
{[%emt 00:00:16]} 26. Qxb7 {[%clk 00:01:21]} {[%emt 00:00:29]} Qxb7 {[%clk
00:01:10]} {[%emt 00:00:38]} 27. Rxb7 {[%clk 00:01:21]} {[%emt 00:00:01]} Bd4+
{[%clk 00:01:10]} {[%emt 00:00:01]} 28. Kf3 {[%clk 00:01:21]} {[%emt 00:00:01]}
Rc6 {[%clk 00:01:10]} {[%emt 00:00:01]} 29. g3 {[%clk 00:01:13]} {[%emt
00:00:11]} a5 {[%clk 00:00:55]} {[%emt 00:00:18]} 30. Re8+ {[%clk 00:01:13]}
Kg7 {[%clk 00:00:55]} 31. Ra8 {[%clk 00:01:13]} Re6 {[%clk 00:00:47]} {[%emt
00:00:12]} 32. Rxa5 {[%clk 00:00:57]} {[%emt 00:00:19]} Re3+ {[%clk 00:00:47]}
33. Kg4 {[%clk 00:00:52]} {[%emt 00:00:06]} h5+ {[%clk 00:00:47]} {[%emt
00:00:03]} 34. Kh3 {[%clk 00:00:54]} Re2 {[%clk 00:00:47]} {[%emt 00:00:02]} 35.
Rb1 {[%clk 00:00:41]} {[%emt 00:00:16]} Rxc2 {[%emt 00:00:05]} 36. Rd5 {[%clk
00:00:41]} Bf2 {[%clk 00:00:25]} {[%emt 00:00:25]} 37. Rd7 {[%clk 00:00:38]}
{[%emt 00:00:06]} c3 {[%clk 00:00:11]} {[%emt 00:00:16]} 38. Rbb7 {[%clk
00:00:38]} Bg1 {[%clk 00:00:11]} {[%emt 00:00:01]} 39. Rxf7+ {[%clk 00:00:38]}
Kg8 {[%clk 00:00:11]} {[%emt 00:00:01]} 40. Kh4 {[%clk 00:00:37]} {[%emt
00:00:04]} Rxh2+ {[%clk 00:00:11]} {[%emt 00:00:02]} 41. Kg5 {[%clk 00:00:37]}
Rd2 {[%clk 00:00:06]} {[%emt 00:00:08]} 42. Rfc7 {[%clk 00:00:36]} {[%emt
00:00:04]} Rd5+ {[%clk 00:00:06]} {[%emt 00:00:01]} 43. Kxg6 {[%clk 00:00:36]}
{[%emt 00:00:01]} Rd6+ {[%clk 00:00:06]} 44. Kxh5 {[%clk 00:00:36]} {[%emt
00:00:01]} 1-0